Cogmind - Beta 16 @@@ ROGUE MODE // 2025.10.29 @ 17:05:54 Player: Bearly Playable Result: Self-destructed Performance ------------- Evolutions (0) 0 Regions Visited (4) 800 Robots Destroyed (14) 70 Value Destroyed (289) 289 Prototype IDs (25) 500 Alien Tech Used (0) 0 Bonus (300) 300 TOTAL SCORE: 1959 Bonus ------- Aligned with FarCom 300 Cogmind --------- Core Integrity 138/250 Matter 276/300 Energy 250/250 System Corruption 0% Temperature Cool (0) Movement Treading (160) Location -9/Mines Parts ------- > --- POWER (1) -------- Ion Engine > --- PROPULSION (2) --- Light Treads Light Treads > --- UTILITY (2) ------ Small Storage Unit Trap Reconfigurator > --- WEAPON (2) ------- EM Pulse Gun Autogun > --- INVENTORY (8) ---- Light Ion Engine Flight Unit Flight Unit Flight Unit Flight Unit Small Laser Grenade Launcher Rocket Launcher Peak State ------------ > --- POWER ------------ Ion Engine > --- PROPULSION ------- Light Treads Light Treads > --- UTILITY ---------- Small Storage Unit Trap Reconfigurator > --- WEAPON ----------- EM Pulse Gun Autogun > --- INVENTORY -------- Light Ion Engine Flight Unit Flight Unit Flight Unit Flight Unit Small Laser Grenade Launcher Rocket Launcher [Rating: 16] Favorites ----------- Power Ion Engine Engine Ion Engine Power Core Light Nuclear Core Propulsion Light Treads Treads Light Treads Utility Small Storage Unit Device Trap Reconfigurator Storage Small Storage Unit Protection Light Armor Plating Weapon EM Pulse Gun Energy Gun EM Pulse Gun Ballistic Gun Light Assault Rifle Build | -11 -10 -10 -10 -9 ------- Run | Yrd Mat Min Exi Min Slots Evolved . | . . . . . Power . | . . . . . Propulsion . | . . . . . Utility . | . . . . . Weapon . | . . . . . Parts Attached 12 | 6 4 . 1 1 Power 2 | 1 1 . . . Engine 1 | 1 . . . . Core 1 | . 1 . . . Reactor . | . . . . . Propulsion 2 | 2 . . . . Treads 2 | 2 . . . . Leg . | . . . . . Wheel . | . . . . . Hover . | . . . . . Flight . | . . . . . Utility 4 | 1 2 . 1 . Device 1 | . . . 1 . Storage 2 | 1 1 . . . Processor . | . . . . . Hackware . | . . . . . Protection 1 | . 1 . . . Artifact . | . . . . . Weapon 4 | 2 1 . . 1 Energy Gun 2 | 2 . . . . Energy Cannon . | . . . . . Ballistic Gun 2 | . 1 . . 1 Ballistic Cannon . | . . . . . Launcher . | . . . . . Special Weapon . | . . . . . Impact Weapon . | . . . . . Slashing Weapon . | . . . . . Piercing Weapon . | . . . . . Special Melee Weapon . | . . . . . Unidentified Prototypes . | . . . . . Parts Lost 2 | . 1 1 . . Power 1 | . . 1 . . Propulsion . | . . . . . Utility . | . . . . . Weapon 1 | . 1 . . . Highest Loss Streak 1 | . 1 1 . . To Critical Strikes . | . . . . . Average Backups 6 | 1 4 6 8 8 Power 1 | . 1 1 1 1 Propulsion 2 | . 1 2 4 4 Utility . | . . . . . Weapon 2 | . 1 2 3 3 Tool/Special . | . . . . . Unused Backups 8 | . . . . 8 Power 1 | . . . . 1 Propulsion 4 | . . . . 4 Utility . | . . . . . Weapon 3 | . . . . 3 Tool/Special . | . . . . . Average Slot Usage (%) 98 | . 93 100 100 100 Engine 9 | . 4 6 14 14 Core 4 | . 9 7 . . Treads 28 | . 28 28 28 28 Device 4 | . . . 9 14 Storage 14 | . 14 14 14 14 Protection 8 | . 8 14 4 . Energy Gun 15 | . 18 14 14 14 Ballistic Gun 12 | . 8 14 14 14 Peak Build Rating 16 | 6 9 9 15 16 Average Rating 9 | 4 7 8 12 15 On Entrance 7 | . 6 9 7 15 Avg Prop Armor Cover (%) . | . . . . . Naked Turns . | . . . . . Heaviest Build 16 | 14 16 16 16 16 Greatest Support 40 | 40 40 40 40 40 Greatest Overweight (x) 2 | 2 . . . . Average Overweight (x) . | . . . . . Largest Inventory Capacity 25 | 8 25 8 8 8 Average Capacity 7 | 7 8 8 8 8 Most Carried 8 | 2 7 8 8 8 Average Carried 6 | 1 5 6 8 8 Final Capacity 8 | 8 8 8 8 8 Final Carried 8 | 2 6 8 8 8 Class Distribution -------------------- 100% | Mutant Dominant Class ---------------- Mutant | -10/Materials Mutant | -10/Mines Mutant | -10/Exiles Mutant | -9/Mines Resources | -11 -10 -10 -10 -9 ----------- Run | Yrd Mat Min Exi Min Matter Collected 344 | 194 76 54 . 20 Remotely . | . . . . . Salvage Created 625 | . 498 127 . . Parts 31 | . 24 7 . . Haulers Intercepted 1 | . 1 . . . Recyclers Shooed 1 | . 1 . . . Parts Field Recycled . | . . . . . Retrieved Matter . | . . . . . Parts Self-Destructed . | . . . . . Prevented . | . . . . . Parts Restored . | . . . . . Kills | -11 -10 -10 -10 -9 ------- Run | Yrd Mat Min Exi Min Combat Hostiles Destroyed 10 | . 6 4 . . Guns 8 | . 4 4 . . AOE 1 | . 1 . . . Classes Destroyed 4 | . 4 . . . Hauler 1 | . 1 . . . Recycler 3 | . 3 . . . Swarmer 5 | . 3 2 . . Grunt 5 | . 3 2 . . Best Kill Streak 6 | . 6 2 . . Combat Bots Only 4 | . 4 2 . . Max Kills in Single Turn 3 | . 3 1 . . Gunslinging . | . . . . . Exploded 1 | . 1 . . . Melee . | . . . . . Uniques/NPCs Destroyed . | . . . . . Combat | -11 -10 -10 -10 -9 -------- Run | Yrd Mat Min Exi Min Hostile Shots Fired 46 | . 15 31 . . Missed 5 | . 4 1 . . Hits 41 | . 11 30 . . Projectile 41 | . 11 30 . . Damage Taken 503 | . 155 348 . . Core 112 | . 47 65 . . Absorbed by Shields . | . . . . . Core Remaining (%) 100 | 100 . . . . Volleys Fired 42 | . 19 17 . 6 Largest 2 | . 2 2 . 1 Hottest 80 | . 80 60 . 23 Shots Fired 65 | . 34 25 . 6 Gun 65 | . 34 25 . 6 Cannon . | . . . . . Launcher . | . . . . . Special . | . . . . . Kinetic 23 | . . 17 . 6 Thermal . | . . . . . Explosive . | . . . . . Electromagnetic 42 | . 34 8 . . Robot Hit Streak 12 | . 12 10 . . Robot Miss Streak 2 | . 2 1 . . Penetration Max . | . . . . . Secondary Targets 1 | . . 1 . . Max Gunslinging Chain 1 | . . 1 . . Shots Hit Robots 44 | . 23 21 . . Core Hits 20 | . 12 8 . . Critical Kills . | . . . . . Critical Parts Destroyed . | . . . . . Critical Strikes . | . . . . . Melee Attacks . | . . . . . Impact . | . . . . . Slashing . | . . . . . Piercing . | . . . . . Sneak Attacks . | . . . . . Combat Hostiles . | . . . . . Follow-up Attacks . | . . . . . Damage Inflicted 525 | . 310 215 . . Guns 515 | . 300 215 . . Cannons . | . . . . . Explosions . | . . . . . Melee . | . . . . . Ramming 10 | . 10 . . . Kinetic 112 | . . 112 . . Thermal . | . . . . . Explosive . | . . . . . Electromagnetic 403 | . 300 103 . . Impact . | . . . . . Slashing . | . . . . . Piercing . | . . . . . Highest Corruption . | . . . . . Average Corruption . | . . . . . Corruption Purged . | . . . . . Corruption Blocked . | . . . . . Overload Shots . | . . . . . Overflow Damage . | . . . . . Projectiles . | . . . . . Explosions . | . . . . . Melee . | . . . . . Knockbacks . | . . . . . Impact . | . . . . . Kinetic . | . . . . . Secondary . | . . . . . Self-Inflicted Damage . | . . . . . Shots . | . . . . . Rammed 2 | . 2 . . . Targets Rammed 2 | . 2 . . . Kicked . | . . . . . Crushed . | . . . . . Highest Temperature 229 | . 153 229 . 6 Average Temperature 81 | . 62 119 . 3 Received Heat Transfer 237 | . 69 168 . . Effects 2 | . . 2 . . Interference 2 | . . 2 . . Siege Activations . | . . . . . Martial Activations . | . . . . . Shielding Activations . | . . . . . Robots Disrupted . | . . . . . Combat Hostiles . | . . . . . Robots Corrupted 1 | . 1 . . . Combat Hostiles 1 | . 1 . . . Parts Fried 2 | . 2 . . . Impact Corruptions . | . . . . . Robots Melted . | . . . . . Combat Hostiles . | . . . . . Parts Melted . | . . . . . Heat Transferred . | . . . . . Parts Sabotaged . | . . . . . Parts Stolen . | . . . . . Parts Stripped . | . . . . . Power Chain Reactions . | . . . . . Alert | -11 -10 -10 -10 -9 ------- Run | Yrd Mat Min Exi Min Maximum Alert Level . | . . . . . Low Security (%) 100 | 100 100 100 . 100 Level 1 . | . . . . . Level 2 . | . . . . . Level 3 . | . . . . . Level 4 . | . . . . . Level 5 . | . . . . . High Security . | . . . . . Max Security . | . . . . . Peak Influence 147 | . 147 50 . . Initial . | . . . . . Average 23 | . 49 8 . . Influence Increases 365 | . 243 122 . . Destroy 0b10 Robot/C 200 | . 120 80 . . Destroy 0b10 Robot/NC 20 | . 20 . . . Destroy Leader 42 | . 32 10 . . Allied During Kill 2 | . . 2 . . Successful Hack 26 | . 26 . . . Disable Machine 15 | . 15 . . . Lose Combat Pursuer 60 | . 30 30 . . Influence Decreases 365 | . 243 120 2 . Entered New Map 2 | . . . 2 . Time Decay 353 | . 233 120 . . Lost Part 10 | . 10 . . . Squads Dispatched . | . . . . . Investigation . | . . . . . Extermination . | . . . . . Reinforcement . | . . . . . Assault . | . . . . . Garrison . | . . . . . Intercept . | . . . . . Searches Triggered . | . . . . . Construction Impeded . | . . . . . Haulers Reinforced . | . . . . . Active Scanning Responses . | . . . . . Cargo Convoy Interrupts . | . . . . . Stealth | -11 -10 -10 -10 -9 --------- Run | Yrd Mat Min Exi Min Distress Signals 1 | . 1 . . . Communications Jammed . | . . . . . Distress Signals . | . . . . . Times Spotted 23 | . 15 8 . . Peak Tracking Total 5 | . 5 3 . . Tactical Retreats 3 | . 2 1 . . Traps | -11 -10 -10 -10 -9 ------- Run | Yrd Mat Min Exi Min Traps Triggered . | . . . . . Indirectly . | . . . . . Trap Hack Attempts . | . . . . . Triggered . | . . . . . Disarmed . | . . . . . Reprogrammed . | . . . . . Reused . | . . . . . Traps Extracted . | . . . . . Installed . | . . . . . Triggered . | . . . . . Machines | -11 -10 -10 -10 -9 ---------- Run | Yrd Mat Min Exi Min Machines Disabled 1 | . 1 . . . Max in Single Turn 1 | . 1 . . . Machines Repaired . | . . . . . Machines Dismantled . | . . . . . Machines Sabotaged . | . . . . . Overloaded Fab Kills . | . . . . . Hacking | -11 -10 -10 -10 -9 --------- Run | Yrd Mat Min Exi Min Machines Accessed 5 | . 3 . 2 . Terminals 3 | . 3 . . . Fabricators . | . . . . . Repair Stations . | . . . . . Recycling Units . | . . . . . Scanalyzers . | . . . . . Garrison Access . | . . . . . Total Hacks 12 | . 10 . 2 . Successful 9 | . 7 . 2 . Failed 3 | . 3 . . . Catastrophic 2 | . 2 . . . Database Lockouts . | . . . . . Manual 8 | . 7 . 1 . Terminals 10 | . 10 . . . Fabricators . | . . . . . Repair Stations . | . . . . . Recycling Units . | . . . . . Scanalyzers . | . . . . . Garrison Access . | . . . . . Terminal Hacks 7 | . 5 . 2 . Record 1 | . . . 1 . Prototype ID Bank 1 | . 1 . . . Branch Access Points 1 | . 1 . . . Emergency Access Points 1 | . 1 . . . Terminal Index 1 | . 1 . . . Security Status 1 | . 1 . . . Proto ID Catalog 1 | . . . 1 . Fabricator Hacks . | . . . . . Repair Station Hacks . | . . . . . Recycling Unit Hacks . | . . . . . Scanalyzer . | . . . . . Garrison Access Hacks . | . . . . . Unauthorized Hacks 2 | . 2 . . . Terminals 2 | . 2 . . . Botnet 1 | . 1 . . . Operators 1 | . 1 . . . Fabricators . | . . . . . Repair Stations . | . . . . . Recycling Units . | . . . . . Scanalyzers . | . . . . . Garrison Access . | . . . . . Data Cores Recovered . | . . . . . Used . | . . . . . Hacking Detections 3 | . 3 . . . Full Trace Events 1 | . 1 . . . Feedback Events . | . . . . . Feedback Blocked . | . . . . . Robot Schematics Acquired . | . . . . . Robots Built . | . . . . . Authchips . | . . . . . Time . | . . . . . Total Robot Build Rating . | . . . . . Part Schematics Acquired . | . . . . . Parts Built . | . . . . . Authchips . | . . . . . Time . | . . . . . Total Part Build Rating . | . . . . . Part Studies Acquired . | . . . . . Parts Repaired . | . . . . . Time . | . . . . . Parts Recycled . | . . . . . Recycled Matter . | . . . . . Retrieved Matter . | . . . . . Retrieved Components . | . . . . . Parts Scanalyzed . | . . . . . Part Schematics Acquired . | . . . . . Parts Damaged . | . . . . . Bothacking | -11 -10 -10 -10 -9 ------------ Run | Yrd Mat Min Exi Min Used RIF Installer . | . . . . . Robots Hacked . | . . . . . Non-combat . | . . . . . Combat . | . . . . . Robot Hacks Applied . | . . . . . Relay Couplers Released . | . . . . . Fabnet Peak Effective % . | . . . . . Robots Rewired . | . . . . . Allies Hacked . | . . . . . Hacks Repelled . | . . . . . Allies | -11 -10 -10 -10 -9 -------- Run | Yrd Mat Min Exi Min Total Allies 6 | . . 6 . . Largest Group 3 | . . 3 2 . Highest-Rated Group 77 | . . 77 62 . Highest-Rated Ally 31 | . . 31 31 . Total Orders . | . . . . . Ally Attacks 6 | . . 6 . . Total Damage 50 | . . 50 . . Kills . | . . . . . Allies Corrupted . | . . . . . Allies Melted . | . . . . . Intel | -11 -10 -10 -10 -9 ------- Run | Yrd Mat Min Exi Min Active Infowar (turns) . | . . . . . Robot Analysis Total . | . . . . . Derelict Logs Recovered . | . . . . . Drone Launches . | . . . . . Drone Recoveries . | . . . . . Exploration | -11 -10 -10 -10 -9 ------------- Run | Yrd Mat Min Exi Min Turns Passed 2318 | 79 623 700 716 200 Spaces Moved 1276 | 47 345 405 446 33 Core 7 | 7 . . . . Treads 1269 | 40 345 405 446 33 Legs . | . . . . . Wheels . | . . . . . Hover . | . . . . . Flight . | . . . . . Fastest Speed 50 | 50 160 160 160 160 Average Speed 159 | 147 160 160 160 160 Slowest Speed 160 | 160 160 160 160 160 Overloaded Moves . | . . . . . Propulsion Burnouts . | . . . . . Robots Hopped . | . . . . . Potential Cave-ins . | . . . . . Cave-ins Triggered . | . . . . . Exploration Rate (%) 45 | 4 61 70 80 10 Regions Visited 4 Branch Regions 3 Pre-discovered Areas 1 | . . 1 . . Known Exits Taken 1 | . 1 . . . Unknown Exits Taken 3 | 1 . 1 1 . Scrap Searched 1 | . . . . 1 Spaces Dug . | . . . . . Terrain Destroyed . | . . . . . Melee . | . . . . . Projectile . | . . . . . AOE . | . . . . . Terrain Rammed . | . . . . . Walls Destroyed . | . . . . . Machines Disabled . | . . . . . Actions | -11 -10 -10 -10 -9 --------- Run | Yrd Mat Min Exi Min Total 1492 | 54 379 436 448 175 Wait 148 | . 3 11 . 134 Move 1272 | 46 344 404 445 33 Hop . | . . . . . Pick Up 10 | 2 5 3 . . Fast Attach 8 | 6 2 . . . Attach 2 | . 1 1 . . Detach . | . . . . . Swap 4 | . 2 . 1 1 Drop 2 | . 1 . . 1 Fire 42 | . 19 17 . 6 Melee . | . . . . . Ram . | . . . . . Kick . | . . . . . Crush 2 | . 2 . . . Escape Stasis . | . . . . . Rewire 2 | . . . 2 . Trap . | . . . . . Miscellaneous . | . . . . . Route ------- -11/Scrapyard -10/Materials (discovered 2 exits: [*Mat] / *Min) -10/Mines (discovered 4 exits: [*Mat x2] / *Exi / [*Sub]) -10/Exiles -9/Mines History --------- Turn | Location | Event 19 | -11/Scrapyard | Discovered new exit (range 15) 80 | -11/Scrapyard | Entered Materials 304 | -10/Materials | Build established: Mutant 314 | -10/Materials | Discovered new exit (range 14) 400 | -10/Materials | Discovered new exit (range 9) 592 | -10/Materials | Identified exit to Mines 703 | -10/Materials | Entered Mines 751 | -10/Mines | Assisted by bots powering up and referring to "LRC-V3" 769 | -10/Mines | Discovered new exit (range 7) 808 | -10/Mines | Assembled infested the area 857 | -10/Mines | Lost 3 allies 932 | -10/Mines | Discovered new exit (range 9) 1039 | -10/Mines | Received a Rocket Launcher from a helpful Derelict 1276 | -10/Mines | Discovered new exit (range 5) 1316 | -10/Mines | Escorted by a lone wolf Derelict 1336 | -10/Mines | Learned location of Storage (-7) 1384 | -10/Mines | Discovered new exit (range 5) 1403 | -10/Mines | Entered Exiles 1403 | -10/Exiles | Accompanied by 2 allies 1433 | -10/Exiles | Led the pair of lost Derelicts to a safe place 1447 | -10/Exiles | Met 8R-AWN 1469 | -10/Exiles | Met EX-HEX 1537 | -10/Exiles | Met EX-BIN 1562 | -10/Exiles | Aligned with FarCom system 1564 | -10/Exiles | Given EX-Vault access code 1617 | -10/Exiles | Opened EX-Vault 1628 | -10/Exiles | Found Trap Reconfigurator 1661 | -10/Exiles | Warned to stay clear of 0b10 Research branches 1709 | -10/Exiles | Met EX-DEC 1782 | -10/Exiles | Visited The Gauntlet 2101 | -10/Exiles | Discovered new exit (range 14) 2119 | -10/Exiles | Left Exiles lab with Trap Reconfigurator 2119 | -10/Exiles | Entered Mines 2173 | -9/Mines | Excavation squad dispatched 2173 | -9/Mines | A large section of the Mines collapsed 2319 | -9/Mines | Self-destructed Last Messages --------------- EX-DEC: "Oops, I hope HEX didn't hear that..." Connecting with EX-Message Board... SZ-P7T(z): I was there on that fateful day we tested the Lightpack 1.0. It was such a good haul, too, only to see JA-CK9 crushed like a forgotten microchip... EXIT=FOUND LOCATION=UNKNOWN GOAL=ESCAPE Receiving FarCom transmissions... Searching scrap... Found Autogun. Found Hrd. Light Armor Plating. Found 46 Matter. Acquired 10 matter. Dropped Lgt. Assault Rifle. Acquired 10 matter. ALERT: Suspicious cave-in, suspected derelict activity in mines. Dispatching escorted excavation squad. Map ----- +----------------------------------------------------+ | | | | | | | ?????????????????????????????? | | ???????????????????#####?????? | | ??????????????????## ######? | | ??????????????????# ## | | ???????????######## | | ???????????# # | | ???????????# ##### #### ## | | ???????????# #???# ##????###? | | ???????????# #???## #????????? | | ??????????## #????#%##### #??? | | ?????????## ##???#[! #??? | | ????????## ##??####### #??? | | ???????## ##????????????? | | ???????# #????????????? | | ??????## ##????????????? | | ???#### ## #?????????????? | | ??## g ##? #?????????????? | | ??# #?? #?????????????? | | ??# ##?? ?????????????? | | ??# ####??? ?????????????? | | ??## ##???????#?????????????? | | ??#####??????????????????????? | | ??# #@#??????????????????????? | | ??# ####?????????????????????? | | ??# #??????????g??????????? | | ??# ?????????????????????? | | ??## ###????????????????????? | | ???## #??????????????????????? | | ????# #??????????????????????? | | ????# #??????????????????????? | | ????# #??????????????????????? | | ????? ???????????????????????? | | ????? ??????g????????????????? | | ????? ???????????????????????? | | ????? ???????????????????????? | | ????? ???????????????????????? | | ????? ???????????????????????? | | ????? ???????????????????????? | | ?????????????????????????????? | | ?????????????????????????????? | | ?????????????????????????????? | | ?????????????????????????????? | | ?????????????????????????????? | | ?????????????????????????????? | | ?????????????????????????????? | | ?????????????????????????????? | | ?????????????????????????????? | +----------------------------------------------------+ Best States ------------- Heat Dissipation 25 Energy Generation 14 Energy Capacity 250 Matter Stores 300 Matter Capacity 300 Sight Range 16 Terrain Scan Density 10 Armor Coverage 150 Evasion (%) 40 Recoil Reduction 2 Item Schematics ----------------- None Robot Schematics ------------------ None Fabricated ------------ Nothing Repaired ---------- Nothing Studied --------- None Alien Tech Used ----------------- None Achievements -------------- Sixth Sense Challenges ------------ None Game ------ Seed SlugThermalFemtoactuators Manual? 0 Play Time 00:16:05 Cumulative 12.0 hours Start 2025.10.29 @ 16:42:27 End 2025.10.29 @ 17:05:54 Sessions 1 Manual Loads 0 Difficulty Rogue Special Mode None Game No. 29 Rogue 29 Adventurer 0 Explorer 0 Win Type - Total 0 Types 0/0/0/0/0/0/0/0/0/0 Lore% 15 Gallery% 13 Achievement% 14 Wizard Run 0 Options --------- Layout 1 ASCII 0 Keyboard 1 Movement Numpad Keybinds 0 Fullscreen 1 Font 32/SmallcapsGlow Map View 50x40 Zoom Use 0% Tactical HUD 0 Map Filters NONE Filters NONE Steam 1 RUN: c3d16c4d-fe8e-49d6-8d58-200ad7778268